[Event "Titled Tuesday Blitz June 27 Late 2023"]
[White "Sokolov, Andrei"]
[Black "Ezat, Mohamed"]
[WhiteFideId "11600306"]
[BlackFideId "10600906"]
[WhiteElo "2373"]
[BlackElo "2560"]
[Result "0-1"]
[Round "4"]
[TimeControl "180+2"]
[Date "2023.06.27"]
[WhiteClock "0:00:00"]
[BlackClock "0:00:37"]
[Board "115"]

1. d4 {[%clk 0:03:00]}  Nf6 {[%clk 0:02:57]} 2. c4 {[%clk 0:03:00]}  d6 {[%clk 0:02:55]} 3. Nc3 {[%clk 0:02:58]}  Bf5 {[%clk 0:02:55]} 4. Qb3 {[%clk 0:02:40]}  Qc8 {[%clk 0:02:53]} 5. g3 {[%clk 0:02:39]}  c6 {[%clk 0:02:52]} 6. Bg2 {[%clk 0:02:38]}  e5 {[%clk 0:02:52]} 7. Nf3 {[%clk 0:02:31]}  Nbd7 {[%clk 0:02:40]} 8. Nh4 {[%clk 0:02:25]}  Bg4 {[%clk 0:02:36]} 9. d5 {[%clk 0:02:18]}  Nc5 {[%clk 0:02:34]} 10. Qc2 {[%clk 0:02:14]}  a5 {[%clk 0:02:33]} 11. h3 {[%clk 0:01:59]}  Bd7 {[%clk 0:02:32]} 12. e4 {[%clk 0:01:57]}  Be7 {[%clk 0:02:31]} 13. Be3 {[%clk 0:01:33]}  cxd5 {[%clk 0:02:29]} 14. cxd5 {[%clk 0:01:28]}  b5 {[%clk 0:02:12]} 15. Bf1 {[%clk 0:01:09]}  b4 {[%clk 0:01:58]} 16. Nb5 {[%clk 0:01:09]}  Qb7 {[%clk 0:01:41]} 17. a4 {[%clk 0:00:31]}  Nfxe4 {[%clk 0:01:34]} 18. Bxc5 {[%clk 0:00:17]}  Nxc5 {[%clk 0:01:31]} 19. Nf5 {[%clk 0:00:16]}  Bxf5 {[%clk 0:00:57]} 20. Qxf5 {[%clk 0:00:17]}  O-O {[%clk 0:00:51]} 21. Be2 {[%clk 0:00:00]}  g6 {[%clk 0:00:37]} 0-1


[Site "https://www.chess.com"]

[Event "Titled Tuesday Blitz June 27 Late 2023"]
[White "Lopez Del Alamo, Antonio"]
[Black "Kuzmin, Roman"]
[WhiteFideId "2227339"]
[BlackFideId "44134932"]
[WhiteElo "2370"]
[BlackElo "2530"]
[Result "0-1"]
[Round "4"]
[TimeControl "180+2"]
[Date "2023.06.27"]
[WhiteClock "0:02:10"]
[BlackClock "0:02:12"]
[Board "117"]

1. e4 {[%clk 0:03:00]}  c5 {[%clk 0:02:59]} 2. Nf3 {[%clk 0:03:00]}  d6 {[%clk 0:03:00]} 3. d4 {[%clk 0:03:00]}  cxd4 {[%clk 0:03:01]} 4. Nxd4 {[%clk 0:02:59]}  Nf6 {[%clk 0:03:01]} 5. Nc3 {[%clk 0:03:00]}  a6 {[%clk 0:03:02]} 6. Be2 {[%clk 0:02:59]}  e5 {[%clk 0:03:01]} 7. Nb3 {[%clk 0:03:00]}  Be7 {[%clk 0:03:02]} 8. Be3 {[%clk 0:03:00]}  Be6 {[%clk 0:03:02]} 9. Nd5 {[%clk 0:03:01]}  Bxd5 {[%clk 0:02:49]} 10. exd5 {[%clk 0:03:01]}  Nbd7 {[%clk 0:02:50]} 11. c4 {[%clk 0:02:58]}  O-O {[%clk 0:02:49]} 12. O-O {[%clk 0:02:57]}  b6 {[%clk 0:02:48]} 13. Rc1 {[%clk 0:02:56]}  Ne4 {[%clk 0:02:44]} 14. f3 {[%clk 0:02:53]}  Nec5 {[%clk 0:02:44]} 15. Qd2 {[%clk 0:02:51]}  f5 {[%clk 0:02:42]} 16. Na1 {[%clk 0:02:49]}  a5 {[%clk 0:02:41]} 17. Nc2 {[%clk 0:02:49]}  h6 {[%clk 0:02:35]} 18. Na3 {[%clk 0:02:46]}  f4 {[%clk 0:02:29]} 19. Bf2 {[%clk 0:02:42]}  e4 {[%clk 0:02:29]} 20. fxe4 {[%clk 0:02:38]}  Nxe4 {[%clk 0:02:30]} 21. Qc2 {[%clk 0:02:37]}  Nxf2 {[%clk 0:02:28]} 22. Rxf2 {[%clk 0:02:36]}  Bf6 {[%clk 0:02:19]} 23. Rxf4 {[%clk 0:02:31]}  Qe7 {[%clk 0:02:19]} 24. Rf3 {[%clk 0:02:21]}  Rae8 {[%clk 0:02:11]} 25. Bd3 {[%clk 0:02:16]}  Bd4+ {[%clk 0:02:11]} 26. Kh1 {[%clk 0:02:14]}  Qe1+ {[%clk 0:02:09]} 27. Rxe1 {[%clk 0:02:13]}  Rxe1+ {[%clk 0:02:10]} 28. Bf1 {[%clk 0:02:12]}  Rxf1+ {[%clk 0:02:11]} 29. Rxf1 {[%clk 0:02:10]}  Rxf1# {[%clk 0:02:12]} 0-1


[Site "https://www.chess.com"]

[Event "Titled Tuesday Blitz June 27 Late 2023"]
[White "Fernandez Siles, Luis"]
[Black "Vaglio Mattey, Emanuel"]
[WhiteFideId "2209420"]
[BlackFideId "6504167"]
[WhiteElo "2362"]
[BlackElo "2528"]
[Result "1-0"]
[Round "4"]
[TimeControl "180+2"]
[Date "2023.06.27"]
[WhiteClock "0:00:11"]
[BlackClock "0:00:10"]
[Board "121"]

1. e4 {[%clk 0:03:00]}  c6 {[%clk 0:02:46]} 2. d4 {[%clk 0:03:00]}  d5 {[%clk 0:02:47]} 3. exd5 {[%clk 0:03:01]}  cxd5 {[%clk 0:02:48]} 4. c4 {[%clk 0:03:01]}  e6 {[%clk 0:02:47]} 5. Nc3 {[%clk 0:03:02]}  Nf6 {[%clk 0:02:48]} 6. Nf3 {[%clk 0:03:02]}  Be7 {[%clk 0:02:48]} 7. cxd5 {[%clk 0:03:02]}  exd5 {[%clk 0:02:48]} 8. Bd3 {[%clk 0:03:02]}  O-O {[%clk 0:02:49]} 9. h3 {[%clk 0:03:02]}  Nc6 {[%clk 0:02:49]} 10. O-O {[%clk 0:03:02]}  Re8 {[%clk 0:02:49]} 11. Bf4 {[%clk 0:03:01]}  h6 {[%clk 0:02:49]} 12. Re1 {[%clk 0:02:55]}  Be6 {[%clk 0:02:50]} 13. a3 {[%clk 0:02:51]}  Rc8 {[%clk 0:02:50]} 14. Bc2 {[%clk 0:02:51]}  Na5 {[%clk 0:02:47]} 15. Qd3 {[%clk 0:02:47]}  Nc4 {[%clk 0:02:45]} 16. Rab1 {[%clk 0:02:45]}  Qa5 {[%clk 0:02:42]} 17. Be5 {[%clk 0:02:13]}  Nxb2 {[%clk 0:02:32]} 18. Rxb2 {[%clk 0:02:00]}  Qxc3 {[%clk 0:02:33]} 19. Bxf6 {[%clk 0:01:57]}  Qxd3 {[%clk 0:02:29]} 20. Bxd3 {[%clk 0:01:57]}  Bxf6 {[%clk 0:02:28]} 21. Rxb7 {[%clk 0:01:57]}  Rc3 {[%clk 0:02:28]} 22. Bb5 {[%clk 0:01:56]}  Rec8 {[%clk 0:02:18]} 23. a4 {[%clk 0:01:51]}  a5 {[%clk 0:01:07]} 24. Bd7 {[%clk 0:01:28]}  R8c7 {[%clk 0:00:39]} 25. Rb8+ {[%clk 0:01:13]}  Kh7 {[%clk 0:00:38]} 26. Bxe6 {[%clk 0:01:11]}  fxe6 {[%clk 0:00:39]} 27. Rxe6 {[%clk 0:01:10]}  Ra3 {[%clk 0:00:39]} 28. Rd6 {[%clk 0:00:57]}  Ra2 {[%clk 0:00:34]} 29. Ne5 {[%clk 0:00:46]}  Rc1+ {[%clk 0:00:31]} 30. Kh2 {[%clk 0:00:45]}  Bxe5+ {[%clk 0:00:19]} 31. dxe5 {[%clk 0:00:45]}  Rxf2 {[%clk 0:00:19]} 32. Rb3 {[%clk 0:00:30]}  Rcc2 {[%clk 0:00:06]} 33. Rg3 {[%clk 0:00:29]}  Rf7 {[%clk 0:00:05]} 34. Rxd5 {[%clk 0:00:28]}  Re7 {[%clk 0:00:06]} 35. Rxa5 {[%clk 0:00:28]}  Re2 {[%clk 0:00:06]} 36. Rb5 {[%clk 0:00:25]}  Re4 {[%clk 0:00:06]} 37. a5 {[%clk 0:00:25]}  Ra4 {[%clk 0:00:07]} 38. Re3 {[%clk 0:00:24]}  Re6 {[%clk 0:00:07]} 39. Rb6 {[%clk 0:00:23]}  Re7 {[%clk 0:00:07]} 40. a6 {[%clk 0:00:23]}  h5 {[%clk 0:00:07]} 41. e6 {[%clk 0:00:22]}  Kh6 {[%clk 0:00:06]} 42. Rb7 {[%clk 0:00:20]}  Re8 {[%clk 0:00:07]} 43. a7 {[%clk 0:00:19]}  Ra2 {[%clk 0:00:07]} 44. e7 {[%clk 0:00:18]}  Rc8 {[%clk 0:00:07]} 45. e8=Q {[%clk 0:00:13]}  Rcc2 {[%clk 0:00:07]} 46. Qh8+ {[%clk 0:00:12]}  Kg5 {[%clk 0:00:07]} 47. Rb5+ {[%clk 0:00:11]}  Kf4 {[%clk 0:00:08]} 48. Rf3+ {[%clk 0:00:11]}  Ke4 {[%clk 0:00:09]} 49. Qe8+ {[%clk 0:00:10]}  Kd4 {[%clk 0:00:09]} 50. Qd7+ {[%clk 0:00:10]}  Kc4 {[%clk 0:00:09]} 51. Qc6+ {[%clk 0:00:10]}  Kd4 {[%clk 0:00:10]} 52. Rd5+ {[%clk 0:00:11]}  Ke4 {[%clk 0:00:10]} 53. Qe6# {[%clk 0:00:11]} 1-0


[Site "https://www.chess.com"]

[Event "Titled Tuesday Blitz June 27 Late 2023"]
[White "Davidson, Kevin"]
[Black "Shapiro, Viktor"]
[WhiteFideId "2056810"]
[BlackFideId "4175700"]
[WhiteElo "2361"]
[BlackElo "2526"]
[Result "1-0"]
[Round "4"]
[TimeControl "180+2"]
[Date "2023.06.27"]
[WhiteClock "0:00:07"]
[BlackClock "0:00:59"]
[Board "122"]

1. e4 {[%clk 0:03:00]}  Nf6 {[%clk 0:03:00]} 2. e5 {[%clk 0:03:01]}  Nd5 {[%clk 0:02:59]} 3. d4 {[%clk 0:03:01]}  d6 {[%clk 0:03:00]} 4. c4 {[%clk 0:03:01]}  Nb6 {[%clk 0:03:00]} 5. exd6 {[%clk 0:03:02]}  cxd6 {[%clk 0:03:01]} 6. Nc3 {[%clk 0:03:02]}  g6 {[%clk 0:03:01]} 7. Be3 {[%clk 0:03:02]}  Bg7 {[%clk 0:03:01]} 8. Rc1 {[%clk 0:03:02]}  O-O {[%clk 0:03:02]} 9. b3 {[%clk 0:03:03]}  f5 {[%clk 0:03:02]} 10. d5 {[%clk 0:02:59]}  e5 {[%clk 0:03:01]} 11. dxe6 {[%clk 0:02:59]}  Nc6 {[%clk 0:03:01]} 12. Nf3 {[%clk 0:02:58]}  f4 {[%clk 0:03:01]} 13. Bd4 {[%clk 0:02:59]}  Nxd4 {[%clk 0:03:01]} 14. Nxd4 {[%clk 0:02:59]}  Qf6 {[%clk 0:03:01]} 15. Nf3 {[%clk 0:02:21]}  Bxe6 {[%clk 0:02:41]} 16. Be2 {[%clk 0:02:18]}  Rad8 {[%clk 0:02:38]} 17. O-O {[%clk 0:02:09]}  d5 {[%clk 0:02:38]} 18. c5 {[%clk 0:02:01]}  Nd7 {[%clk 0:02:34]} 19. Nxd5 {[%clk 0:01:55]}  Qf5 {[%clk 0:02:10]} 20. Ne7+ {[%clk 0:01:51]}  Kh8 {[%clk 0:02:10]} 21. Nxf5 {[%clk 0:01:52]}  Bxf5 {[%clk 0:02:10]} 22. Qd5 {[%clk 0:01:27]}  Rfe8 {[%clk 0:01:56]} 23. Ng5 {[%clk 0:01:14]}  Ne5 {[%clk 0:01:56]} 24. Qxb7 {[%clk 0:01:00]}  h6 {[%clk 0:01:53]} 25. Nf7+ {[%clk 0:00:42]}  Nxf7 {[%clk 0:01:52]} 26. Qxf7 {[%clk 0:00:43]}  Rxe2 {[%clk 0:01:52]} 27. c6 {[%clk 0:00:40]}  Rc8 {[%clk 0:01:46]} 28. Rfd1 {[%clk 0:00:33]}  f3 {[%clk 0:01:33]} 29. c7 {[%clk 0:00:29]}  Ree8 {[%clk 0:01:26]} 30. gxf3 {[%clk 0:00:20]}  a5 {[%clk 0:01:24]} 31. h4 {[%clk 0:00:14]}  Rf8 {[%clk 0:01:24]} 32. Qe7 {[%clk 0:00:13]}  Rfe8 {[%clk 0:01:24]} 33. Qd6 {[%clk 0:00:10]}  Be5 {[%clk 0:01:22]} 34. Qd8 {[%clk 0:00:09]}  Kh7 {[%clk 0:01:15]} 35. Qxe8 {[%clk 0:00:09]}  Rxe8 {[%clk 0:01:15]} 36. Rd8 {[%clk 0:00:09]}  Re7 {[%clk 0:01:04]} 37. c8=Q {[%clk 0:00:08]}  Bxc8 {[%clk 0:01:05]} 38. Rdxc8 {[%clk 0:00:09]}  Bg7 {[%clk 0:01:04]} 39. R8c7 {[%clk 0:00:09]}  Re2 {[%clk 0:01:00]} 40. R1c2 {[%clk 0:00:09]}  Rxc2 {[%clk 0:01:00]} 41. Rxc2 {[%clk 0:00:08]}  Bf6 {[%clk 0:01:01]} 42. Rc5 {[%clk 0:00:07]}  Bxh4 {[%clk 0:01:00]} 43. Rxa5 {[%clk 0:00:07]}  Bf6 {[%clk 0:01:00]} 44. Rd5 {[%clk 0:00:07]}  h5 {[%clk 0:01:00]} 45. b4 {[%clk 0:00:07]}  Bc3 {[%clk 0:01:00]} 46. b5 {[%clk 0:00:07]}  Ba5 {[%clk 0:01:00]} 47. Kg2 {[%clk 0:00:06]}  Kg7 {[%clk 0:01:00]} 48. Rd7+ {[%clk 0:00:05]}  Kf6 {[%clk 0:01:01]} 49. Ra7 {[%clk 0:00:05]}  Bc3 {[%clk 0:00:59]} 50. b6 {[%clk 0:00:05]}  Bd4 {[%clk 0:00:59]} 51. Ra6 {[%clk 0:00:05]}  Ke7 {[%clk 0:00:59]} 52. b7 {[%clk 0:00:05]}  Be5 {[%clk 0:01:00]} 53. Ra8 {[%clk 0:00:05]}  g5 {[%clk 0:01:00]} 54. b8=Q {[%clk 0:00:06]}  Bxb8 {[%clk 0:01:00]} 55. Rxb8 {[%clk 0:00:07]}  Kf6 {[%clk 0:01:01]} 56. a4 {[%clk 0:00:07]}  h4 {[%clk 0:00:59]} 57. a5 {[%clk 0:00:07]} 1-0


[Site "https://www.chess.com"]

[Event "Titled Tuesday Blitz June 27 Late 2023"]
[White "Liu, Casper"]
[Black "micke12a"]
[WhiteFideId "1454153"]
[WhiteElo "2522"]
[BlackElo "2352"]
[Result "1-0"]
[Round "4"]
[TimeControl "180+2"]
[Date "2023.06.27"]
[WhiteClock "0:02:18"]
[BlackClock "0:01:38"]
[Board "125"]

1. d4 {[%clk 0:02:56]}  d5 {[%clk 0:02:58]} 2. Bf4 {[%clk 0:02:56]}  Nf6 {[%clk 0:02:56]} 3. e3 {[%clk 0:02:57]}  c5 {[%clk 0:02:56]} 4. c3 {[%clk 0:02:57]}  Nc6 {[%clk 0:02:56]} 5. Bd3 {[%clk 0:02:55]}  cxd4 {[%clk 0:02:53]} 6. exd4 {[%clk 0:02:56]}  e6 {[%clk 0:02:54]} 7. Nf3 {[%clk 0:02:56]}  Bd6 {[%clk 0:02:54]} 8. Bg3 {[%clk 0:02:56]}  O-O {[%clk 0:02:53]} 9. Nbd2 {[%clk 0:02:55]}  Qc7 {[%clk 0:02:51]} 10. Qe2 {[%clk 0:02:55]}  Re8 {[%clk 0:02:50]} 11. Ne5 {[%clk 0:02:54]}  Bd7 {[%clk 0:02:41]} 12. O-O {[%clk 0:02:44]}  Rab8 {[%clk 0:02:15]} 13. f4 {[%clk 0:02:44]}  g6 {[%clk 0:02:11]} 14. Ndf3 {[%clk 0:02:36]}  a6 {[%clk 0:02:00]} 15. Ng5 {[%clk 0:02:35]}  Bc8 {[%clk 0:01:53]} 16. Ngxf7 {[%clk 0:02:34]}  Bxe5 {[%clk 0:01:51]} 17. fxe5 {[%clk 0:02:33]}  Qxf7 {[%clk 0:01:50]} 18. Rxf6 {[%clk 0:02:32]}  Qg7 {[%clk 0:01:50]} 19. Raf1 {[%clk 0:02:32]}  b5 {[%clk 0:01:46]} 20. Qf3 {[%clk 0:02:24]}  Rb7 {[%clk 0:01:42]} 21. h4 {[%clk 0:02:18]}  h5 {[%clk 0:01:38]} 22. Rxg6 {[%clk 0:02:18]} 1-0


[Site "https://www.chess.com"]

[Event "Titled Tuesday Blitz June 27 Late 2023"]
[White "Glavina, Pablo"]
[Black "Perske, Thore"]
[WhiteFideId "100234"]
[BlackFideId "12902195"]
[WhiteElo "2349"]
[BlackElo "2522"]
[Result "0-1"]
[Round "4"]
[TimeControl "180+2"]
[Date "2023.06.27"]
[WhiteClock "0:00:18"]
[BlackClock "0:00:16"]
[Board "126"]

1. c4 {[%clk 0:03:00]}  Nf6 {[%clk 0:02:59]} 2. Nc3 {[%clk 0:02:57]}  g6 {[%clk 0:02:59]} 3. e4 {[%clk 0:02:57]}  d6 {[%clk 0:02:59]} 4. d4 {[%clk 0:02:57]}  Bg7 {[%clk 0:03:00]} 5. Be2 {[%clk 0:02:57]}  O-O {[%clk 0:03:01]} 6. Nf3 {[%clk 0:02:58]}  e5 {[%clk 0:03:00]} 7. O-O {[%clk 0:02:58]}  Nc6 {[%clk 0:03:00]} 8. d5 {[%clk 0:02:59]}  Ne7 {[%clk 0:03:00]} 9. Ne1 {[%clk 0:02:59]}  Nd7 {[%clk 0:03:01]} 10. Nd3 {[%clk 0:02:59]}  f5 {[%clk 0:03:01]} 11. Bd2 {[%clk 0:03:00]}  Nf6 {[%clk 0:03:01]} 12. f3 {[%clk 0:03:00]}  f4 {[%clk 0:03:02]} 13. Rc1 {[%clk 0:03:00]}  g5 {[%clk 0:03:02]} 14. c5 {[%clk 0:03:01]}  Ng6 {[%clk 0:03:02]} 15. Nb5 {[%clk 0:03:01]}  Rf7 {[%clk 0:02:56]} 16. Ba5 {[%clk 0:03:00]}  b6 {[%clk 0:02:56]} 17. cxd6 {[%clk 0:03:00]}  cxd6 {[%clk 0:02:54]} 18. Be1 {[%clk 0:03:00]}  a6 {[%clk 0:02:30]} 19. Nc3 {[%clk 0:03:00]}  a5 {[%clk 0:02:26]} 20. a4 {[%clk 0:02:59]}  h5 {[%clk 0:02:20]} 21. Nb5 {[%clk 0:02:57]}  Bf8 {[%clk 0:02:20]} 22. Bf2 {[%clk 0:02:55]}  g4 {[%clk 0:02:15]} 23. Rc6 {[%clk 0:02:55]}  Rb8 {[%clk 0:02:08]} 24. Qc2 {[%clk 0:02:50]}  Bd7 {[%clk 0:01:56]} 25. Rc4 {[%clk 0:02:13]}  Rg7 {[%clk 0:01:42]} 26. Nc7 {[%clk 0:01:55]}  g3 {[%clk 0:01:25]} 27. hxg3 {[%clk 0:01:55]}  fxg3 {[%clk 0:01:25]} 28. Bxg3 {[%clk 0:01:55]}  h4 {[%clk 0:01:22]} 29. Bh2 {[%clk 0:01:55]}  Nh5 {[%clk 0:01:12]} 30. f4 {[%clk 0:01:55]}  Nhxf4 {[%clk 0:01:08]} 31. Nxf4 {[%clk 0:01:55]}  exf4 {[%clk 0:01:02]} 32. Bxf4 {[%clk 0:01:54]}  Nxf4 {[%clk 0:01:01]} 33. Rxf4 {[%clk 0:01:55]}  Qg5 {[%clk 0:00:58]} 34. Rf2 {[%clk 0:01:49]}  h3 {[%clk 0:00:52]} 35. Bf3 {[%clk 0:01:49]}  Rc8 {[%clk 0:00:35]} 36. Ne6 {[%clk 0:01:43]}  Rxc4 {[%clk 0:00:31]} 37. Qxc4 {[%clk 0:01:24]}  Qe3 {[%clk 0:00:31]} 38. Nxg7 {[%clk 0:01:20]}  h2+ {[%clk 0:00:25]} 39. Kxh2 {[%clk 0:01:21]}  Qxf2 {[%clk 0:00:24]} 40. Nf5 {[%clk 0:01:18]}  Qxb2 {[%clk 0:00:20]} 41. Qd4 {[%clk 0:01:13]}  Qxd4 {[%clk 0:00:18]} 42. Nxd4 {[%clk 0:01:14]}  Bxa4 {[%clk 0:00:19]} 43. Be2 {[%clk 0:01:11]}  Bg7 {[%clk 0:00:18]} 44. Bb5 {[%clk 0:01:04]}  Be5+ {[%clk 0:00:17]} 45. Kh3 {[%clk 0:01:04]}  Bd1 {[%clk 0:00:17]} 46. Nc6 {[%clk 0:00:51]}  a4 {[%clk 0:00:17]} 47. Nxe5 {[%clk 0:00:49]}  dxe5 {[%clk 0:00:18]} 48. d6 {[%clk 0:00:46]}  Kf7 {[%clk 0:00:18]} 49. Kh4 {[%clk 0:00:39]}  Bb3 {[%clk 0:00:17]} 50. Bxa4 {[%clk 0:00:21]}  Bxa4 {[%clk 0:00:17]} 51. Kg5 {[%clk 0:00:18]}  Bd7 {[%clk 0:00:16]} 0-1


[Site "https://www.chess.com"]

[Event "Titled Tuesday Blitz June 27 Late 2023"]
[White "Tissir, Mohamed"]
[Black "Muhammed, Shuaau"]
[WhiteFideId "9000240"]
[BlackFideId "16700406"]
[WhiteElo "2510"]
[BlackElo "2346"]
[Result "1-0"]
[Round "4"]
[TimeControl "180+2"]
[Date "2023.06.27"]
[WhiteClock "0:00:38"]
[BlackClock "0:00:11"]
[Board "128"]

1. e4 {[%clk 0:02:58]}  e5 {[%clk 0:02:59]} 2. Nf3 {[%clk 0:02:58]}  Nc6 {[%clk 0:02:59]} 3. Bc4 {[%clk 0:02:57]}  Nf6 {[%clk 0:02:59]} 4. d3 {[%clk 0:02:57]}  Be7 {[%clk 0:02:59]} 5. O-O {[%clk 0:02:57]}  O-O {[%clk 0:02:58]} 6. Re1 {[%clk 0:02:57]}  d6 {[%clk 0:02:53]} 7. c3 {[%clk 0:02:57]}  a6 {[%clk 0:02:49]} 8. Bb3 {[%clk 0:02:57]}  Be6 {[%clk 0:02:48]} 9. Nbd2 {[%clk 0:02:56]}  Bxb3 {[%clk 0:02:48]} 10. axb3 {[%clk 0:02:56]}  Nh5 {[%clk 0:02:41]} 11. Nf1 {[%clk 0:02:48]}  Nf4 {[%clk 0:02:40]} 12. Bxf4 {[%clk 0:02:45]}  exf4 {[%clk 0:02:40]} 13. d4 {[%clk 0:02:46]}  f5 {[%clk 0:02:34]} 14. exf5 {[%clk 0:02:40]}  Rxf5 {[%clk 0:02:33]} 15. Qd3 {[%clk 0:02:41]}  Rf7 {[%clk 0:02:25]} 16. d5 {[%clk 0:02:37]}  Nb8 {[%clk 0:02:14]} 17. Nd4 {[%clk 0:02:37]}  Nd7 {[%clk 0:02:11]} 18. Ne6 {[%clk 0:02:23]}  Nc5 {[%clk 0:01:53]} 19. Nxc5 {[%clk 0:02:20]}  dxc5 {[%clk 0:01:52]} 20. Nd2 {[%clk 0:02:21]}  Bd6 {[%clk 0:01:38]} 21. Nf3 {[%clk 0:02:20]}  g5 {[%clk 0:01:37]} 22. h3 {[%clk 0:02:17]}  h5 {[%clk 0:01:33]} 23. Qg6+ {[%clk 0:02:16]}  Rg7 {[%clk 0:01:31]} 24. Qxh5 {[%clk 0:02:16]}  Qf6 {[%clk 0:01:31]} 25. Re6 {[%clk 0:02:15]}  Qf5 {[%clk 0:01:31]} 26. c4 {[%clk 0:02:02]}  Rf8 {[%clk 0:01:31]} 27. Rae1 {[%clk 0:02:01]}  g4 {[%clk 0:01:31]} 28. hxg4 {[%clk 0:01:56]}  Qxg4 {[%clk 0:01:28]} 29. Qxg4 {[%clk 0:01:38]}  Rxg4 {[%clk 0:01:29]} 30. Re8 {[%clk 0:01:37]}  Kf7 {[%clk 0:01:29]} 31. Rxf8+ {[%clk 0:01:37]}  Kxf8 {[%clk 0:01:29]} 32. Re6 {[%clk 0:01:37]}  Kf7 {[%clk 0:01:25]} 33. Kf1 {[%clk 0:01:37]}  Rg8 {[%clk 0:01:24]} 34. Nh4 {[%clk 0:01:35]}  b5 {[%clk 0:01:19]} 35. Nf5 {[%clk 0:01:34]}  bxc4 {[%clk 0:01:20]} 36. bxc4 {[%clk 0:01:33]}  Rb8 {[%clk 0:01:18]} 37. Nxd6+ {[%clk 0:01:30]}  cxd6 {[%clk 0:01:19]} 38. Rxd6 {[%clk 0:01:31]}  Rxb2 {[%clk 0:01:19]} 39. Rxa6 {[%clk 0:01:29]}  Rb4 {[%clk 0:01:19]} 40. Ra7+ {[%clk 0:01:27]}  Kf6 {[%clk 0:01:18]} 41. d6 {[%clk 0:01:12]}  Rxc4 {[%clk 0:01:19]} 42. d7 {[%clk 0:01:10]}  Rd4 {[%clk 0:01:19]} 43. Rc7 {[%clk 0:01:08]}  Ke6 {[%clk 0:01:05]} 44. Rxc5 {[%clk 0:01:05]}  Rxd7 {[%clk 0:01:05]} 45. Ke2 {[%clk 0:01:05]}  Rd4 {[%clk 0:00:58]} 46. Kf3 {[%clk 0:01:05]}  Ra4 {[%clk 0:00:55]} 47. Rh5 {[%clk 0:01:03]}  Kf6 {[%clk 0:00:55]} 48. Kg4 {[%clk 0:00:58]}  Ke6 {[%clk 0:00:22]} 49. Rh8 {[%clk 0:00:47]}  Ra2 {[%clk 0:00:15]} 50. Kf3 {[%clk 0:00:45]}  Ra4 {[%clk 0:00:15]} 51. Rf8 {[%clk 0:00:43]}  Ke5 {[%clk 0:00:15]} 52. Kg4 {[%clk 0:00:41]}  Rb4 {[%clk 0:00:11]} 53. Rf5+ {[%clk 0:00:40]}  Ke6 {[%clk 0:00:12]} 54. Rxf4 {[%clk 0:00:40]}  Rb2 {[%clk 0:00:11]} 55. g3 {[%clk 0:00:40]}  Rb1 {[%clk 0:00:11]} 56. Ra4 {[%clk 0:00:39]}  Rf1 {[%clk 0:00:11]} 57. f4 {[%clk 0:00:39]}  Kf6 {[%clk 0:00:10]} 58. Ra6+ {[%clk 0:00:39]}  Kf7 {[%clk 0:00:10]} 59. Kf5 {[%clk 0:00:40]}  Rb1 {[%clk 0:00:11]} 60. Kg5 {[%clk 0:00:38]}  Rb5+ {[%clk 0:00:11]} 61. f5 {[%clk 0:00:38]}  Rc5 {[%clk 0:00:12]} 62. g4 {[%clk 0:00:39]}  Ra5 {[%clk 0:00:11]} 63. Rxa5 {[%clk 0:00:38]} 1-0


[Site "https://www.chess.com"]

[Event "Titled Tuesday Blitz June 27 Late 2023"]
[White "Graif, William"]
[Black "The_Straightforward_Rook"]
[WhiteFideId "2609835"]
[WhiteElo "2507"]
[BlackElo "2345"]
[Result "1-0"]
[Round "4"]
[TimeControl "180+2"]
[Date "2023.06.27"]
[WhiteClock "0:00:15"]
[BlackClock "0:00:18"]
[Board "129"]

1. e4 {[%clk 0:02:59]}  e5 {[%clk 0:02:57]} 2. Nf3 {[%clk 0:02:57]}  Nc6 {[%clk 0:02:56]} 3. d4 {[%clk 0:02:57]}  exd4 {[%clk 0:02:54]} 4. c3 {[%clk 0:02:57]}  d5 {[%clk 0:02:38]} 5. Bd3 {[%clk 0:02:56]}  Nf6 {[%clk 0:02:18]} 6. e5 {[%clk 0:02:55]}  Ne4 {[%clk 0:02:18]} 7. O-O {[%clk 0:02:53]}  Bg4 {[%clk 0:02:12]} 8. Re1 {[%clk 0:02:49]}  Be7 {[%clk 0:01:59]} 9. Bxe4 {[%clk 0:02:23]}  dxe4 {[%clk 0:02:00]} 10. Rxe4 {[%clk 0:02:23]}  dxc3 {[%clk 0:01:52]} 11. Nxc3 {[%clk 0:02:05]}  Qxd1+ {[%clk 0:01:48]} 12. Nxd1 {[%clk 0:02:06]}  O-O-O {[%clk 0:01:48]} 13. Bf4 {[%clk 0:01:55]}  Bxf3 {[%clk 0:01:44]} 14. gxf3 {[%clk 0:01:53]}  Rd4 {[%clk 0:01:32]} 15. Nc3 {[%clk 0:01:36]}  Rhd8 {[%clk 0:01:29]} 16. Rae1 {[%clk 0:01:35]}  Nb4 {[%clk 0:01:19]} 17. Bg3 {[%clk 0:00:34]}  Nd3 {[%clk 0:00:59]} 18. Rxd4 {[%clk 0:00:29]}  Rxd4 {[%clk 0:00:48]} 19. Rd1 {[%clk 0:00:27]}  c5 {[%clk 0:00:47]} 20. Nb5 {[%clk 0:00:22]}  Nxb2 {[%clk 0:00:19]} 21. Rxd4 {[%clk 0:00:17]}  cxd4 {[%clk 0:00:20]} 22. Nxd4 {[%clk 0:00:17]}  Kd7 {[%clk 0:00:19]} 23. f4 {[%clk 0:00:17]}  a6 {[%clk 0:00:20]} 24. f5 {[%clk 0:00:17]}  Nc4 {[%clk 0:00:20]} 25. e6+ {[%clk 0:00:17]}  fxe6 {[%clk 0:00:21]} 26. fxe6+ {[%clk 0:00:18]}  Ke8 {[%clk 0:00:20]} 27. Kg2 {[%clk 0:00:18]}  Bf6 {[%clk 0:00:20]} 28. Nf5 {[%clk 0:00:17]}  g6 {[%clk 0:00:20]} 29. Nh6 {[%clk 0:00:15]}  Ke7 {[%clk 0:00:20]} 30. Ng8+ {[%clk 0:00:13]}  Kxe6 {[%clk 0:00:21]} 31. Nxf6 {[%clk 0:00:14]}  Kxf6 {[%clk 0:00:21]} 32. Kf3 {[%clk 0:00:15]}  b5 {[%clk 0:00:21]} 33. Ke4 {[%clk 0:00:15]}  a5 {[%clk 0:00:22]} 34. Kd5 {[%clk 0:00:14]}  b4 {[%clk 0:00:22]} 35. Kxc4 {[%clk 0:00:14]}  Kf5 {[%clk 0:00:22]} 36. Bc7 {[%clk 0:00:14]}  h5 {[%clk 0:00:22]} 37. Bxa5 {[%clk 0:00:14]}  g5 {[%clk 0:00:23]} 38. Bxb4 {[%clk 0:00:14]}  g4 {[%clk 0:00:24]} 39. a4 {[%clk 0:00:13]}  Kf4 {[%clk 0:00:25]} 40. a5 {[%clk 0:00:13]}  Kf3 {[%clk 0:00:25]} 41. a6 {[%clk 0:00:13]}  Kg2 {[%clk 0:00:26]} 42. Bd6 {[%clk 0:00:13]}  Kxf2 {[%clk 0:00:25]} 43. a7 {[%clk 0:00:14]}  h4 {[%clk 0:00:26]} 44. a8=Q {[%clk 0:00:14]}  g3 {[%clk 0:00:26]} 45. hxg3 {[%clk 0:00:14]}  hxg3 {[%clk 0:00:27]} 46. Bxg3+ {[%clk 0:00:14]}  Kxg3 {[%clk 0:00:18]} 47. Qe4 {[%clk 0:00:15]} 1-0


[Site "https://www.chess.com"]